bitfinex/quotes_BTCUSD_20240821
["timestamp","ask_amount","ask_price","bid_price","bid_amount"]
[1724278014136,0.00018836,61410.0,61408.0,0.905325]
[1724278016676,0.00018836,61413.0,61408.0,1.231015]
[1724278016900,0.00018836,61414.0,61408.0,0.905325]
[1724278017325,0.00018836,61414.0,61408.0,1.231015]
[1724278017526,0.00018836,61413.0,61408.0,0.905325]
[1724278018415,0.00018836,61413.0,61408.0,1.231015]
[1724278018823,0.00018836,61410.0,61408.0,1.231015]
[1724278019030,0.00018836,61410.0,61408.0,0.905325]
[1724278019689,0.00018836,61410.0,61408.0,1.231015]
[1724278021578,0.00018836,61413.0,61408.0,1.231015]
[1724278021808,0.00018836,61414.0,61408.0,1.231015]
[1724278023519,0.00844836,61424.0,61408.0,6.91120402]
[1724278023729,0.00844836,61424.0,61408.0,7.06177375]
[1724278023944,0.00844836,61424.0,61408.0,7.01520402]
[1724278024164,0.00844836,61424.0,61408.0,7.77476264]
[1724278024365,0.00844836,61424.0,61408.0,7.79904119]
[1724278024602,0.00826,61424.0,61417.0,0.00081164]
[1724278024801,0.00826,61424.0,61419.0,1.831844]
[1724278025009,0.00826,61424.0,61419.0,7.04584698]
[1724278026280,0.00826,61424.0,61419.0,7.05984698]
[1724278027730,0.00826,61424.0,61419.0,7.07384698]
[1724278028765,0.00826,61424.0,61419.0,7.0818614]
[1724278028906,0.00826,61424.0,61419.0,5.3428614]
[1724278030238,0.00826,61424.0,61419.0,5.3419539]
[1724278038049,0.00826,61424.0,61419.0,2.0309539]
[1724278039016,0.00826,61424.0,61419.0,2.84862954]
[1724278039493,0.00826,61424.0,61419.0,7.89862954]
[1724278039702,0.00826,61424.0,61419.0,7.89662954]
[1724278040101,0.00826,61424.0,61419.0,7.89862954]
[1724278040753,0.00826,61424.0,61419.0,7.90062954]
[1724278041970,0.00826,61424.0,61419.0,7.90153704]
[1724278042168,0.00826,61424.0,61423.0,1.96716664]
[1724278042319,0.00826,61424.0,61423.0,7.28316962]
[1724278042736,0.01702869,61437.0,61436.0,1.139397]
[1724278042942,0.01702869,61437.0,61436.0,1.66749998]
[1724278044868,0.01702869,61437.0,61436.0,1.67149998]
[1724278045071,0.01902869,61437.0,61436.0,1.67149998]
[1724278045283,0.01902869,61437.0,61436.0,1.38729998]
[1724278046122,0.01902869,61437.0,61436.0,0.492313]
[1724278046267,0.01702869,61437.0,61436.0,0.492313]
[1724278046470,0.01702869,61437.0,61436.0,0.605913]
[1724278046673,0.01702869,61437.0,61436.0,0.609913]
[1724278047077,0.01702869,61437.0,61436.0,1.17885798]
[1724278047300,0.01702869,61437.0,61436.0,1.24165798]
[1724278047483,0.01702869,61437.0,61436.0,1.56719998]
[1724278048087,0.01702869,61437.0,61436.0,1.89274198]
[1724278048342,0.01702869,61437.0,61436.0,7.04274198]
[1724278048570,0.01702869,61437.0,61436.0,7.21314198]
[1724278049175,0.01702869,61437.0,61436.0,5.75614198]
[1724278049375,0.01702869,61437.0,61436.0,3.47659998]
[1724278049594,0.01702869,61437.0,61436.0,3.36959998]
[1724278050773,0.01702869,61437.0,61436.0,3.69514198]
[1724278050977,0.01702869,61437.0,61436.0,3.36959998]
[1724278051334,0.01702869,61437.0,61436.0,3.13859998]
[1724278052577,0.01702869,61437.0,61436.0,3.46414198]
[1724278054830,0.01702869,61437.0,61436.0,3.51575362]
[1724278055054,0.01785369,61437.0,61436.0,3.51975362]
[1724278055230,0.000825,61437.0,61436.0,3.51975362]
[1724278056587,0.000825,61437.0,61436.0,3.56903452]
[1724278057446,0.000825,61437.0,61436.0,3.56503452]
[1724278057649,0.000825,61437.0,61436.0,3.89057652]
[1724278057915,0.000825,61437.0,61436.0,3.89257652]
[1724278058118,0.000825,61437.0,61436.0,3.89057652]
[1724278059155,0.000825,61437.0,61436.0,3.89257652]
[1724278059611,0.000825,61437.0,61436.0,3.89457652]
[1724278060240,0.000825,61437.0,61436.0,3.89057652]
[1724278060493,0.000825,61437.0,61436.0,3.89257652]
[1724278060931,0.000825,61437.0,61436.0,7.64157652]
[1724278061158,0.000825,61437.0,61436.0,7.64357652]
[1724278061370,0.000825,61437.0,61436.0,7.35557652]
[1724278061580,1e-08,61437.0,61436.0,8.19910822]
[1724278061805,0.01702281,61448.0,61447.0,1.63898464]
[1724278062008,0.01702281,61448.0,61447.0,2.51247062]
[1724278062238,0.01702281,61448.0,61447.0,7.56247062]
[1724278062655,0.01702281,61448.0,61447.0,7.66455152]
[1724278063198,0.01702281,61448.0,61447.0,7.87355152]
[1724278063563,0.01702281,61448.0,61447.0,7.82727062]
[1724278063991,0.01702281,61448.0,61447.0,7.84127062]
[1724278064140,0.01702281,61448.0,61447.0,2.05507598]
[1724278064341,0.01702281,61448.0,61447.0,0.892507]
[1724278064545,0.07902281,61448.0,61447.0,0.892507]
[1724278064742,0.08482281,61448.0,61447.0,0.892507]
[1724278065340,0.01702281,61448.0,61447.0,1.65199298]
[1724278065743,0.01702281,61448.0,61447.0,1.66199298]
[1724278066138,0.01702281,61448.0,61447.0,1.65199298]
[1724278066641,0.01702281,61448.0,61447.0,1.64699298]
[1724278066853,0.01702281,61448.0,61447.0,1.65099298]
[1724278067044,0.01784781,61448.0,61447.0,3.22180462]
[1724278067328,0.01784781,61448.0,61447.0,2.63380462]
[1724278067482,0.01784781,61448.0,61447.0,2.64699298]
[1724278067685,0.01784781,61448.0,61447.0,1.64199298]
[1724278067887,0.01784781,61448.0,61447.0,1.38199298]
[1724278068071,0.01784781,61448.0,61447.0,0.892507]
[1724278069284,0.08024781,61448.0,61447.0,0.892507]
[1724278071065,0.08024781,61448.0,61447.0,0.241541]
[1724278071555,0.08024781,61448.0,61447.0,0.567024]
[1724278071811,0.08623617,61448.0,61447.0,0.0788]
[1724278072050,0.08623617,61448.0,61447.0,0.0648]
[1724278072298,0.08623617,61448.0,61447.0,0.0538]
[1724278072299,0.10923617,61448.0,61447.0,0.0538]
[1724278072545,0.08623617,61448.0,61447.0,0.0538]
[1724278072761,0.08623617,61448.0,61447.0,0.0508]
[1724278073012,0.08604781,61448.0,61447.0,0.539024]
[1724278073274,0.08024781,61448.0,61447.0,0.542024]
[1724278073723,0.08024781,61448.0,61447.0,0.218541]
[1724278074290,0.08024781,61448.0,61447.0,0.220541]
[1724278074925,0.08024781,61448.0,61447.0,0.546024]
[1724278075163,0.08024781,61448.0,61447.0,0.220541]
[1724278075380,0.08024781,61448.0,61447.0,0.546024]
[1724278075842,0.01784781,61448.0,61447.0,1.83317598]
[1724278076033,0.01784781,61448.0,61447.0,1.65870218]
[1724278076154,0.01784781,61448.0,61447.0,3.26250462]
[1724278076361,0.01784781,61448.0,61447.0,2.99950462]
[1724278076761,0.01784781,61448.0,61447.0,3.00759293]
[1724278076988,0.01784781,61448.0,61447.0,2.97359293]
[1724278077211,0.01784781,61448.0,61447.0,2.96659293]
[1724278077413,0.01784781,61448.0,61447.0,2.96578129]
[1724278077565,0.01784781,61448.0,61447.0,2.02378129]
[1724278077771,0.01784781,61448.0,61447.0,1.69869298]
[1724278077967,0.01784781,61448.0,61447.0,1.54869298]
[1724278078173,0.01784781,61448.0,61447.0,1.60039054]
[1724278078957,0.01784781,61448.0,61447.0,1.60139054]
[1724278079190,0.01784781,61448.0,61447.0,1.54969298]
[1724278079596,0.01784781,61448.0,61447.0,1.54869298]
[1724278079753,0.01784781,61448.0,61447.0,1.56269298]
[1724278080989,0.01784781,61448.0,61447.0,1.71869298]
[1724278081190,0.01784781,61448.0,61447.0,1.56269298]
[1724278081777,0.01875531,61448.0,61447.0,1.56269298]
[1724278081980,0.01875531,61448.0,61447.0,2.22169298]
[1724278083770,0.01875531,61448.0,61447.0,1.56269298]
[1724278084175,0.08165531,61448.0,61447.0,0.0788]
[1724278084515,0.08165531,61448.0,61447.0,0.241541]
[1724278084695,0.08165531,61448.0,61447.0,0.567024]
[1724278084991,0.08165531,61448.0,61447.0,0.553024]
[1724278085429,0.08165531,61448.0,61447.0,0.554024]
[1724278086168,0.08165531,61448.0,61447.0,0.540024]
[1724278086414,0.08165531,61448.0,61447.0,0.541024]
[1724278086622,0.08165531,61448.0,61447.0,0.543024]
[1724278086831,0.08165531,61448.0,61447.0,0.872507]
[1724278088766,0.08165531,61448.0,61447.0,0.547024]
[1724278088942,0.10484367,61448.0,61447.0,0.0588]
[1724278089696,0.10484367,61448.0,61447.0,0.0548]
[1724278090102,0.10484367,61448.0,61447.0,0.0528]
[1724278090300,0.11064367,61448.0,61447.0,0.0548]
[1724278090499,1.44258966,61448.0,61447.0,0.0548]
[1724278090725,1.44458966,61448.0,61447.0,0.0548]
[1724278091101,1.41681965,61448.0,61447.0,0.0548]
[1724278091526,1.08834165,61448.0,61447.0,0.0528]
[1724278091734,0.76286365,61448.0,61447.0,0.0528]
[1724278092138,0.76286365,61448.0,61447.0,0.0508]
[1724278092139,0.27464665,61448.0,61447.0,0.0508]
[1724278092337,0.11464367,61448.0,61447.0,0.0518]
[1724278092538,0.11564367,61448.0,61447.0,0.0528]
[1724278092859,0.11464367,61448.0,61447.0,0.0518]
[1724278093203,0.11564367,61448.0,61447.0,0.0528]
[1724278093419,0.11564367,61448.0,61447.0,0.0508]
[1724278093420,0.11064367,61448.0,61447.0,0.0508]
[1724278093848,0.11164367,61448.0,61447.0,0.0508]
[1724278094801,0.11564367,61448.0,61447.0,0.0518]
[1724278095370,0.11164367,61448.0,61447.0,0.0508]
[1724278095580,0.11564367,61448.0,61447.0,0.0508]
[1724278096648,0.76786365,61448.0,61447.0,0.0508]
[1724278096852,1.49933876,61448.0,61447.0,0.0508]
[1724278097867,1.49533876,61448.0,61447.0,0.0508]
[1724278098269,1.50133876,61448.0,61447.0,0.0518]
[1724278098447,1.54903046,61448.0,61447.0,0.0518]
[1724278098644,1.50333876,61448.0,61447.0,0.0518]
[1724278099133,1.50033876,61448.0,61447.0,0.0518]
[1724278099326,1.50733876,61448.0,61447.0,0.0528]
[1724278099544,1.49633876,61448.0,61447.0,0.0508]
[1724278100139,1.50733876,61448.0,61447.0,0.0528]
[1724278100690,1.42981965,61448.0,61447.0,0.0528]
[1724278107071,1.42881965,61448.0,61447.0,0.0528]
[1724278107266,1.42781965,61448.0,61447.0,0.0528]
[1724278108865,1.10234165,61448.0,61447.0,0.0528]
[1724278110207,0.25684665,61448.0,61447.0,0.0528]
[1724278111305,0.25684665,61448.0,61447.0,0.0518]
[1724278111306,0.25284665,61448.0,61447.0,0.0518]
[1724278111512,0.25184665,61448.0,61447.0,0.0508]
[1724278111684,0.27484665,61448.0,61447.0,0.0508]
[1724278112039,0.28084665,61448.0,61447.0,0.0508]
[1724278112744,0.28084665,61448.0,61447.0,0.05119181]
[1724278114315,0.21794665,61448.0,61447.0,0.05119181]
[1724278116857,0.05394367,61448.0,61447.0,0.05119181]
[1724278119105,0.21668267,61448.0,61447.0,0.05119181]
[1724278119378,0.05394367,61448.0,61447.0,0.05119181]
[1724278119774,0.21668267,61448.0,61447.0,0.05119181]
[1724278119975,0.70616365,61448.0,61447.0,0.05119181]
[1724278120123,0.77116365,61448.0,61447.0,0.05119181]
[1724278120506,1.42211965,61448.0,61447.0,0.05119181]
[1724278120710,1.42781965,61448.0,61447.0,0.05119181]
[1724278121624,1.48306099,61448.0,61447.0,0.05119181]
[1724278121827,1.58306099,61448.0,61447.0,0.05119181]
[1724278122260,1.58406099,61448.0,61447.0,0.05119181]
[1724278122433,2.19453899,61448.0,61447.0,0.05119181]
[1724278122633,2.56262597,61448.0,61447.0,0.05119181]
[1724278122916,2.60523495,61448.0,61447.0,0.05119181]
[1724278123104,2.63553944,61448.0,61447.0,0.05219181]
[1724278123324,2.52801699,61448.0,61447.0,0.05319181]
[1724278123537,2.52801699,61448.0,61447.0,0.002]
[1724278123725,2.61123211,61448.0,61447.0,0.001]
[1724278123899,2.51401699,61448.0,61447.0,0.001]
[1724278124101,2.61923211,61448.0,61447.0,0.001]
[1724278124305,2.52201699,61448.0,61447.0,0.001]
[1724278124548,2.51901699,61448.0,61447.0,0.001]
[1724278124901,2.51901699,61448.0,61437.0,0.0009075]
[1724278124902,1.21114636,61438.0,61437.0,0.0009075]
[1724278125125,1.49814934,61438.0,61437.0,0.0009075]
[1724278125603,1.84071163,61438.0,61437.0,0.0009075]
[1724278126999,1.85471163,61438.0,61437.0,0.0019075]
[1724278127222,2.01869041,61438.0,61437.0,0.0019075]
[1724278127397,2.02969041,61438.0,61437.0,0.0029075]
[1724278127529,2.01569041,61438.0,61437.0,0.0019075]
[1724278127747,2.02969041,61438.0,61437.0,0.0029075]
[1724278129869,1.86571163,61438.0,61437.0,0.0029075]
[1724278131126,1.86021163,61438.0,61437.0,0.0029075]
[1724278131766,1.53468063,61438.0,61437.0,0.0029075]
[1724278132176,1.5415793,61438.0,61437.0,0.0029075]
[1724278132405,1.5425793,61438.0,61437.0,0.0029075]
[1724278132559,1.70655808,61438.0,61437.0,0.0029075]
[1724278133698,2.03758908,61438.0,61437.0,0.0029075]
[1724278143178,2.08620548,61438.0,61437.0,0.0029075]
[1724278143592,2.03758908,61438.0,61437.0,0.0029075]
[1724278143997,1.8681103,61438.0,61437.0,0.0029075]
[1724278144205,1.8070103,61438.0,61437.0,0.0029075]
[1724278147595,1.8758103,61438.0,61437.0,0.0029075]
[1724278148140,1.4564793,61438.0,61437.0,0.0029075]
[1724278148344,1.44858063,61438.0,61437.0,0.0853075]
[1724278149314,1.61255941,61438.0,61437.0,0.0853075]
[1724278149669,1.63555941,61438.0,61437.0,0.0853075]
[1724278151662,0.04221965,61438.0,61437.0,0.1493075]
[1724278152105,0.20622263,61438.0,61437.0,0.1493075]
[1724278152311,0.69451863,61438.0,61437.0,0.1493075]
[1724278152513,0.35498763,61438.0,61437.0,0.1483075]
[1724278152718,0.04221965,61438.0,61437.0,0.1493075]
[1724278153334,0.05121965,61438.0,61437.0,0.1483075]
[1724278153537,0.05921965,61438.0,61437.0,0.3120755]
[1724278153739,0.04803129,61438.0,61437.0,0.6366115]
[1724278153914,0.05803129,61438.0,61437.0,0.6376115]
[1724278154058,0.05003129,61438.0,61437.0,0.6366115]
[1724278154259,0.04021965,61438.0,61437.0,0.6356115]
[1724278154449,0.04203129,61438.0,61437.0,0.6356115]
[1724278154818,0.04003129,61438.0,61437.0,0.6356115]
[1724278155227,0.04103129,61438.0,61437.0,0.6356115]
[1724278155525,0.05203129,61438.0,61437.0,0.6366115]
[1724278155864,0.04121965,61438.0,61437.0,0.6356115]
[1724278156072,0.04221965,61438.0,61437.0,0.6356115]
[1724278156515,0.04221965,61438.0,61437.0,0.9611475]
[1724278156730,0.04203129,61438.0,61437.0,0.6356115]
[1724278157678,0.04221965,61438.0,61437.0,0.9611475]
[1724278157881,0.01921965,61438.0,61437.0,0.9611475]
[1724278158083,0.04221965,61438.0,61437.0,0.6356115]
[1724278159831,0.04221965,61438.0,61437.0,0.1473075]
[1724278161113,0.04221965,61438.0,61437.0,0.3100755]
[1724278161729,0.04221965,61438.0,61437.0,0.9611475]
[1724278162960,0.04221965,61438.0,61437.0,1.2866835]
[1724278163181,0.04221965,61438.0,61437.0,0.9611475]
[1724278184626,0.04221965,61438.0,61437.0,1.0747475]
[1724278190838,0.04221965,61438.0,61437.0,1.4002835]
[1724278191046,0.01903129,61438.0,61437.0,1.94310952]
[1724278191195,0.000826,61447.0,61446.0,0.813722]
[1724278191396,0.000826,61447.0,61446.0,1.392811]
[1724278191595,0.000826,61447.0,61446.0,1.7183]
[1724278192421,0.000826,61447.0,61446.0,1.88230298]
[1724278192687,0.000826,61447.0,61446.0,7.11659002]
[1724278192925,0.0017325,61448.0,61447.0,1.604673]
[1724278193066,0.0017325,61448.0,61447.0,6.91967598]
[1724278193267,0.0017325,61448.0,61447.0,6.92167598]
[1724278193466,0.0017325,61448.0,61447.0,6.91867598]
[1724278194300,0.0017325,61448.0,61447.0,6.92367598]
[1724278194699,0.0017325,61448.0,61447.0,7.20757598]
[1724278195159,0.0017325,61448.0,61447.0,7.21257598]
[1724278196582,0.0017325,61448.0,61447.0,2.16257598]
[1724278196700,0.0017325,61448.0,61447.0,7.21257598]
[1724278197699,0.0017325,61448.0,61447.0,7.53905898]
[1724278197915,0.0017325,61448.0,61447.0,7.59434602]
[1724278199292,0.0017325,61448.0,61447.0,7.59615766]
[1724278200339,0.0017325,61448.0,61447.0,7.59215766]
[1724278200552,0.0017325,61448.0,61447.0,6.24087062]
[1724278200776,0.00825,61458.0,61451.0,1.933741]
[1724278201002,0.00825,61458.0,61451.0,2.63287783]
[1724278201210,0.00825,61458.0,61453.0,1.92394064]
[1724278201387,0.00825,61458.0,61453.0,2.50939462]
[1724278201596,0.00825,61458.0,61453.0,7.60972272]
[1724278202338,0.00825,61458.0,61453.0,7.60971246]
[1724278202539,0.00825,61458.0,61453.0,7.56139462]
[1724278202962,0.00825,61458.0,61453.0,7.57539462]
[1724278203506,0.0120362,61467.0,61466.0,1.28474]
[1724278203708,0.0120362,61467.0,61466.0,1.66864]
[1724278203911,0.0120362,61467.0,61466.0,1.994023]
[1724278205058,0.0120362,61467.0,61466.0,1.996023]
[1724278205253,0.0120362,61467.0,61466.0,2.16002598]
[1724278205458,0.0120362,61467.0,61466.0,7.21002598]
[1724278205633,0.0120362,61467.0,61466.0,6.22202598]
[1724278206281,0.0120362,61467.0,61466.0,6.22302598]
[1724278206491,0.0120362,61467.0,61466.0,6.22180854]
[1724278206693,0.0120362,61467.0,61466.0,5.10402598]
[1724278207177,0.0120362,61467.0,61466.0,5.10502598]
[1724278207505,0.0120362,61467.0,61466.0,5.47319154]
[1724278207711,0.0120362,61467.0,61466.0,5.14680854]
[1724278207915,0.0120362,61467.0,61466.0,5.10402598]
[1724278209029,0.0120362,61467.0,61466.0,3.25164]
[1724278209240,0.0120362,61467.0,61466.0,0.900057]
[1724278209445,0.0120362,61467.0,61466.0,0.90437953]
[1724278209775,0.0120362,61467.0,61466.0,0.82177953]
[1724278210375,0.03522456,61467.0,61466.0,0.17101353]
[1724278210581,0.05152456,61467.0,61466.0,0.00832253]
[1724278210982,0.05235056,61467.0,61466.0,0.00832253]
[1724278211405,0.03605056,61467.0,61466.0,0.00832253]
[1724278212615,0.01105056,61467.0,61466.0,0.00832253]
[1724278212838,0.000826,61467.0,61466.0,0.00832253]
[1724278214204,0.65289398,61467.0,61466.0,0.00832253]
[1724278214616,0.32751698,61467.0,61466.0,0.00832253]
[1724278214823,0.35051698,61467.0,61466.0,0.00832253]
[1724278215033,0.35051698,61467.0,61466.0,0.00632253]
[1724278215443,0.35051698,61467.0,61466.0,0.00432253]
[1724278216067,1.40914798,61467.0,61466.0,0.00432253]
[1724278216267,1.41214798,61467.0,61466.0,0.00432253]
[1724278216672,0.75839398,61467.0,61466.0,0.00432253]
[1724278216877,0.76239398,61467.0,61466.0,0.00432253]
[1724278217402,1.08777098,61467.0,61466.0,0.00432253]
[1724278218134,1.09077098,61467.0,61466.0,0.00532253]
[1724278218293,1.08777098,61467.0,61466.0,0.00432253]
[1724278218908,1.09077098,61467.0,61466.0,0.00432253]
[1724278219317,1.09177098,61467.0,61466.0,0.00432253]
[1724278219451,1.09077098,61467.0,61466.0,0.00432253]
[1724278220806,1.09177098,61467.0,61466.0,0.00432253]
[1724278221177,1.09077098,61467.0,61466.0,0.00432253]
[1724278221329,1.10779342,61467.0,61466.0,0.00432253]
[1724278222527,1.5494984,61467.0,61466.0,0.00432253]
[1724278223133,1.6494984,61467.0,61466.0,0.00432253]
[1724278223983,1.6494984,61467.0,61466.0,0.00523003]
[1724278224188,1.53317042,61467.0,61466.0,0.00523003]
[1724278224539,1.53317042,61467.0,61466.0,0.00623003]
[1724278224540,1.54017042,61467.0,61466.0,0.00623003]
[1724278224745,1.53317042,61467.0,61466.0,0.00523003]
[1724278225214,1.54217042,61467.0,61466.0,0.00623003]
[1724278225998,1.53517042,61467.0,61466.0,0.00523003]
[1724278226335,1.54717042,61467.0,61466.0,0.00623003]
[1724278227819,1.54317042,61467.0,61466.0,0.00623003]
[1724278228021,1.54317042,61467.0,61455.0,0.07843003]
[1724278228022,0.162718,61456.0,61455.0,0.07843003]
[1724278228222,0.34972098,61456.0,61455.0,0.07843003]
[1724278229218,0.35672098,61456.0,61455.0,0.07943003]
[1724278230494,0.19400298,61456.0,61455.0,0.001]
[1724278231147,0.35672098,61456.0,61455.0,0.001]
[1724278231349,0.68306448,61456.0,61455.0,0.001]
[1724278234573,0.35762848,61456.0,61455.0,0.001]
[1724278235873,0.35762848,61456.0,61455.0,0.0019075]
[1724278236494,0.37465195,61456.0,61455.0,0.0019075]
[1724278243241,0.37465195,61456.0,61452.0,0.0791075]
[1724278243441,0.18700298,61455.0,61452.0,0.0791075]
[1724278244476,0.18700298,61455.0,61452.0,0.1927075]
[1724278245092,0.18700298,61455.0,61452.0,0.1937075]
[1724278245499,0.18700298,61455.0,61452.0,0.1927075]
[1724278245674,0.19300298,61455.0,61452.0,0.1927075]
[1724278246727,0.19300298,61455.0,61453.0,0.1411]
[1724278246934,0.19300298,61455.0,61449.0,0.0797]
[1724278246935,0.0629,61454.0,61449.0,0.0797]
[1724278247143,0.34972898,61453.0,61449.0,0.0797]
[1724278248360,0.35172898,61453.0,61449.0,0.0797]
[1724278248943,0.162728,61452.0,61449.0,0.0797]
[1724278249145,0.18900298,61453.0,61449.0,0.0797]
[1724278249146,0.4882,61450.0,61449.0,0.0797]
[1724278249485,0.225639,61448.0,61447.0,0.0009086]
[1724278249692,0.71511998,61448.0,61447.0,0.0009086]
[1724278249894,0.73811998,61448.0,61447.0,0.0009086]
[1724278250307,0.73911998,61448.0,61447.0,0.0009086]
[1724278250467,0.88114458,61448.0,61447.0,0.0009086]
[1724278250665,0.88014458,61448.0,61447.0,0.0009086]
[1724278251090,0.73811998,61448.0,61447.0,0.0009086]
[1724278251297,0.41264198,61448.0,61447.0,0.0009086]
[1724278251523,0.34974198,61448.0,61447.0,0.0009086]
[1724278251724,0.36676717,61448.0,61447.0,0.0009086]
[1724278252294,0.36776717,61448.0,61447.0,0.0009086]
[1724278252617,0.69324517,61448.0,61447.0,0.0009086]
[1724278254286,0.69285347,61448.0,61447.0,0.0009086]
[1724278256934,1.01833147,61448.0,61447.0,0.0009086]
[1724278257776,1.01733147,61448.0,61447.0,0.0009086]
[1724278257958,1.02333147,61448.0,61447.0,0.0009086]
[1724278258364,1.01733147,61448.0,61447.0,0.0009086]
[1724278258559,1.03933147,61448.0,61447.0,0.0029086]
[1724278258826,1.02833147,61448.0,61447.0,0.0019086]
[1724278258959,1.01733147,61448.0,61447.0,0.0009086]
[1724278259184,1.02633147,61448.0,61447.0,0.0019086]
[1724278259393,1.03633147,61448.0,61447.0,0.0029086]
[1724278262631,1.44860947,61448.0,61447.0,0.0029086]
[1724278263036,1.54860947,61448.0,61447.0,0.0029086]
[1724278264098,1.55060947,61448.0,61447.0,0.0029086]
[1724278264506,1.55151697,61448.0,61447.0,0.0029086]
[1724278264919,1.54851697,61448.0,61447.0,0.0029086]
[1724278266677,1.52531697,61448.0,61447.0,0.0029086]
[1724278268169,1.52631697,61448.0,61447.0,0.0029086]
[1724278268629,1.52831697,61448.0,61447.0,0.0029086]
[1724278271096,1.52531697,61448.0,61447.0,0.0029086]
[1724278271430,1.52831697,61448.0,61447.0,0.0029086]
[1724278272532,1.52531697,61448.0,61447.0,0.0029086]
[1724278273348,1.52631697,61448.0,61447.0,0.0029086]
[1724278273560,1.52831697,61448.0,61447.0,0.0029086]
[1724278273973,1.52914297,61448.0,61447.0,0.0029086]
[1724278274942,1.83202175,61448.0,61447.0,0.0029086]
[1724278275153,1.83202175,61448.0,61426.0,0.49229154]
[1724278275154,0.001,61435.0,61426.0,0.49229154]
[1724278275361,0.552683,61427.0,61426.0,0.49229154]
[1724278275576,0.552683,61427.0,61419.0,0.0009075]
[1724278275577,0.5769,61425.0,61419.0,0.0009075]
[1724278275787,1.18420298,61425.0,61419.0,0.0009075]
[1724278276038,1.63280298,61425.0,61419.0,0.0009075]
[1724278276249,1.66517365,61425.0,61419.0,0.0009075]
[1724278276420,1.68220592,61425.0,61419.0,0.0009075]
[1724278277151,1.69620592,61425.0,61424.0,0.0019075]
[1724278278170,1.66383525,61425.0,61424.0,0.0019075]
[1724278278568,1.56413525,61425.0,61424.0,0.0019075]
[1724278283704,1.56413525,61425.0,61419.0,0.0009075]
[1724278283705,0.817065,61420.0,61419.0,0.0009075]
[1724278283913,1.10406798,61420.0,61419.0,0.0009075]
[1724278285109,1.12506798,61420.0,61419.0,0.0019075]
[1724278287513,1.27152406,61420.0,61419.0,0.0019075]
[1724278287861,1.12506798,61420.0,61419.0,0.0019075]
[1724278288243,0.18500298,61420.0,61419.0,0.0770075]
[1724278288459,0.021,61420.0,61419.0,0.2398235]
[1724278288657,0.021,61420.0,61419.0,0.5654555]
[1724278289424,0.01,61420.0,61419.0,0.2398235]
[1724278289576,0.015,61420.0,61419.0,0.2398235]
[1724278289778,0.005,61420.0,61419.0,0.2388235]
[1724278289980,0.005,61420.0,61419.0,0.0760075]
[1724278290229,0.009,61420.0,61419.0,0.0760075]
[1724278292382,0.009,61420.0,61419.0,0.2388235]
[1724278292543,0.009,61420.0,61419.0,0.0760075]
[1724278293623,0.032,61420.0,61419.0,0.0760075]
[1724278297798,0.031515,61420.0,61419.0,0.0760075]
[1724278298448,0.194328,61420.0,61419.0,0.0760075]
[1724278299042,0.68395698,61420.0,61419.0,0.0760075]
[1724278299853,1.00958298,61420.0,61419.0,0.0760075]
[1724278300248,1.00958298,61420.0,61419.0,0.0009075]
[1724278301094,0.35833098,61420.0,61419.0,0.0009075]
[1724278301293,0.19551798,61420.0,61419.0,0.0841075]
[1724278304399,0.35833098,61420.0,61419.0,0.0841075]
[1724278305415,1.07448298,61420.0,61419.0,0.0009075]
[1724278305692,1.50310898,61420.0,61419.0,0.0009075]
[1724278305920,1.64492271,61420.0,61419.0,0.0009075]
[1724278307341,1.66812271,61420.0,61419.0,0.0009075]
[1724278309128,1.52130898,61420.0,61419.0,0.0009075]
[1724278309853,1.49810898,61420.0,61419.0,0.0009075]
[1724278310387,1.49510898,61420.0,61419.0,0.0009075]
[1724278310789,1.49593498,61420.0,61419.0,0.0009075]
[1724278310994,0.75678298,61420.0,61419.0,0.0774075]
[1724278311599,0.78231488,61420.0,61419.0,0.0774075]
[1724278312407,0.80531488,61420.0,61419.0,0.0774075]
[1724278314483,0.47968888,61420.0,61419.0,0.0774075]
[1724278315007,0.31687588,61420.0,61419.0,0.0774075]
[1724278315215,0.47968888,61420.0,61419.0,0.0774075]
[1724278316451,0.31687588,61420.0,61419.0,0.0774075]
[1724278316674,0.21687588,61420.0,61419.0,0.0774075]
[1724278316890,0.0528729,61420.0,61419.0,0.1434075]
[1724278317529,0.0528729,61420.0,61419.0,0.3062235]
[1724278318510,0.0528729,61420.0,61419.0,0.6318555]
[1724278320371,0.0298729,61420.0,61419.0,0.9574875]
[1724278320880,0.0298729,61420.0,61419.0,1.2831195]
[1724278321648,0.0263579,61420.0,61419.0,1.2831195]
[1724278322091,0.000826,61437.0,61436.0,0.1373915]
[1724278322349,0.000826,61437.0,61436.0,0.6120335]
[1724278323216,0.000826,61437.0,61436.0,0.1491]
[1724278323421,0.000826,61437.0,61436.0,0.311871]
[1724278323750,0.000826,61437.0,61436.0,0.0851]
[1724278323751,0.17182898,61437.0,61436.0,0.0851]
[1724278323935,0.19582898,61437.0,61436.0,0.0841]
[1724278324060,0.19982898,61437.0,61436.0,0.0841]
[1724278324625,0.19582898,61437.0,61436.0,0.0841]
[1724278324830,0.19882898,61437.0,61436.0,0.0841]
[1724278324985,0.19082898,61437.0,61436.0,0.0831]
[1724278325387,0.19382898,61437.0,61436.0,0.0831]
[1724278325581,0.21935138,61437.0,61436.0,0.0831]
[1724278326341,0.21635138,61437.0,61436.0,0.0831]
[1724278326732,0.21635138,61437.0,61436.0,0.474642]
[1724278326733,0.0293484,61437.0,61436.0,0.474642]
[1724278326934,0.0323484,61437.0,61436.0,0.474642]
[1724278327341,0.0323484,61437.0,61436.0,0.637413]
[1724278327700,0.0293484,61437.0,61436.0,0.637413]
[1724278328111,0.0263484,61437.0,61436.0,0.1491]
[1724278328443,0.0503484,61437.0,61436.0,0.1491]
[1724278329039,0.70265538,61437.0,61436.0,0.0831]
[1724278330598,0.37711938,61437.0,61436.0,0.0831]
[1724278331207,0.21435138,61437.0,61436.0,0.0831]
[1724278332405,0.21435138,61437.0,61429.0,0.162787]
[1724278332607,0.023,61436.0,61432.0,0.0779]
[1724278333104,0.16400298,61435.0,61432.0,0.0779]
[1724278333329,0.162778,61433.0,61432.0,0.0779]
[1724278333497,0.32678098,61433.0,61432.0,0.0779]
[1724278333698,0.34978098,61433.0,61432.0,0.0779]
[1724278333855,0.34978098,61433.0,61432.0,0.0789]
[1724278334037,0.34978098,61433.0,61432.0,0.0779]
[1724278334654,0.34978098,61433.0,61427.0,0.0779]
[1724278334655,0.162787,61430.0,61427.0,0.0779]
[1724278334857,0.023,61429.0,61427.0,0.0779]
[1724278335073,0.18579,61429.0,61427.0,0.0779]
[1724278335271,0.21131426,61429.0,61427.0,0.0779]
[1724278335972,0.32679498,61428.0,61427.0,0.0779]
[1724278336173,0.32679498,61428.0,61420.0,0.162812]
[1724278336174,0.0662,61427.0,61420.0,0.0796]